[Event "NED-ch U20 Girls 2018"]
[Site "Assen"]
[Date "2018.05.02"]
[Round "3"]
[White "Woest, Imre"]
[Black "Monteny, Pascalle"]
[Result "1-0"]
[ECO "C77"]
[WhiteElo "1418"]
[BlackElo "1446"]
[Annotator "NA RC"]
[PlyCount "197"]
[EventDate "2018.??.??"]
[EventType "swiss"]
[EventCountry "NED"]
[SourceTitle "playchess.com"]
[Source "ChessBase"]
[SourceQuality "1"]
[TimeControl "5400+30"]

1. e4 {[%emt 0:00:00]} e5 {[%emt 0:00:05]} 2. Nf3 {[%emt 0:00:00]} Nc6 {[%emt 0:00:07]} 3. Bb5 {[%emt 0:00:00]} a6 {[%emt 0:00:07]} 4. Ba4 {[%emt 0:00:00]} Nf6 {[%emt 0:00:15]} 5. O-O {[%emt 0:00:00]} Be7 {[%emt 0:01:35]} 6. Re1 {[%emt 0:00:00]} d6 {[%emt 0:08:09]} 7. c3 {[%emt 0:00:26]} b5 {[%emt 0:01:17]} 8. Bc2 {[%emt 0:00:24]} Bg4 {[%emt 0:02:47]} 9. d3 {[%emt 0:03:29]} O-O {[%emt 0:01:36]} 10. h3 {[%emt 0:00:07]} Bh5 {[%emt 0:03:55]} 11. Nbd2 {[%emt 0:00:10]} Re8 {[%emt 0:02:12]} 12. Nf1 {[%emt 0:01:00]} Bf8 {[%emt 0:05:38]} 13. Ng3 {[%emt 0:01:19]} Bg6 {[%emt 0:00:29]} 14. a4 {[%emt 0:09:45]} b4 {[%emt 0:15:44]} 15. a5 {[%emt 0:07:36]} Na7 {[%emt 0:21:57]} 16. Ba4 {[%emt 0:10:43]} c6 {[%emt 0:03:11]} 17. Be3 {[%emt 0:05:53]} Qc8 {[%emt 0:05:54]} 18. Nh4 {[%emt 0:13:25]} bxc3 {[%emt 0:10:45]} 19. bxc3 {[%emt 0:01:19]} Nb5 {[%emt 0:01:52]} 20. Bxb5 {[%emt 0:12:18]} cxb5 {[%emt 0:00:59]} 21. Rc1 {[%emt 0:01:13]} Qb7 {[%emt 0:02:07]} 22. Rf1 {[%emt 0:03:39]} Nd7 {[%emt 0:01:43]} 23. f4 {[%emt 0:03:49]} f6 {[%emt 0:01:43]} 24. Nxg6 {[%emt 0:00:33]} hxg6 {[%emt 0:00:07]} 25. Qb3+ {[%emt 0:02:22]} Kh7 {[%emt 0:02:03]} 26. f5 {[%emt 0:01:53]} g5 {[%emt 0:02:08]} 27. Qf7 {[%emt 0:00:33]} Nc5 {[%emt 0:01:35]} 28. Qg6+ {[%emt 0:00:36]} Kg8 {[%emt 0:00:54]} 29. Bxg5 {[%emt 0:04:19]} Qf7 {[%emt 0:02:01]} 30. Be3 {[%emt 0:03:06]} Qxg6 {[%emt 0:00:41]} 31. fxg6 {[%emt 0:00:08]} Nxd3 {[%emt 0:00:54]} 32. Rc2 {[%emt 0:01:07]} Rac8 {[%emt 0:01:00]} 33. Nf5 {[%emt 0:02:46]} Nc5 {[%emt 0:00:37]} 34. Bxc5 {[%emt 0:00:20]} dxc5 {[%emt 0:00:12]} 35. Rd1 {[%emt 0:00:20]} Be7 {[%emt 0:00:57]} 36. Nxe7+ {[%emt 0:05:45]} Rxe7 {[%emt 0:00:03]} 37. Rcd2 {[%emt 0:00:11]} Kf8 {[%emt 0:00:46]} 38. Rd8+ {[%emt 0:02:39]} Rxd8 {[%emt 0:00:09]} 39. Rxd8+ {[%emt 0:00:05]} Re8 {[%emt 0:00:05]} 40. Rd6 {[%emt 0:00:11]} Ra8 {[%emt 0:01:00]} 41. Rc6 {[%emt 0:01:17]} c4 {[%emt 0:00:00]} 42. Rb6 {[%emt 0:00:00]} Ra7 {[%emt 0:00:00]} 43. h4 {[%emt 0:00:00]} Ke7 {[%emt 0:00:00]} 44. h5 {[%emt 0:00:00]} Kd7 {[%emt 0:00:00]} 45. Kf2 {[%emt 0:00:00]} Kc7 {[%emt 0:02:01]} 46. h6 {[%emt 0:00:00]} gxh6 {[%emt 0:00:24]} 47. Rxf6 {[%emt 0:00:00]} Ra8 {[%emt 0:01:00]} 48. Rf7+ {[%emt 0:00:00]} Kd6 {[%emt 0:00:36]} 49. g7 {[%emt 0:00:00]} Rg8 {[%emt 0:00:59]} 50. Rf6+ {[%emt 0:00:00]} Kc5 {[%emt 0:00:32]} 51. Rxa6 {[%emt 0:00:00]} Rxg7 {[%emt 0:00:07]} 52. Re6 {[%emt 0:00:00]} Ra7 {[%emt 0:00:51]} 53. Rxe5+ {[%emt 0:00:00]} Kc6 {[%emt 0:00:16]} 54. Ke3 {[%emt 0:00:00]} Rxa5 {[%emt 0:00:36]} 55. Re6+ {[%emt 0:00:00]} Kc5 {[%emt 0:00:41]} 56. Rxh6 {[%emt 0:00:00]} Ra3 {[%emt 0:00:27]} 57. Rh5+ {[%emt 0:00:00]} Kc6 {[%emt 0:00:26]} 58. Kd4 {[%emt 0:00:00]} Ra2 {[%emt 0:00:28]} 59. Rh6+ {[%emt 0:00:00]} Kc7 {[%emt 0:00:38]} 60. Kc5 {[%emt 0:00:00]} Rxg2 {[%emt 0:00:26]} 61. Kxb5 {[%emt 0:00:00]} Re2 {[%emt 0:00:40]} 62. Rc6+ {[%emt 0:00:00]} Kd7 {[%emt 0:00:21]} 63. Rxc4 {[%emt 0:00:00]} Kd6 {[%emt 0:00:27]} 64. Rd4+ {[%emt 0:00:00]} Ke5 {[%emt 0:00:41]} 65. Kc4 {[%emt 0:00:00]} Re3 {[%emt 0:00:25]} 66. Kb4 {[%emt 0:00:00]} Re2 {[%emt 0:00:13]} 67. Kc5 {[%emt 0:01:00]} Rc2 {[%emt 0:00:29]} 68. Kc4 {[%emt 0:01:22]} Rc1 {[%emt 0:00:31]} 69. Kd3 {[%emt 0:00:05]} Re1 {[%emt 0:00:49]} 70. Rd5+ {[%emt 0:00:35]} Ke6 {[%emt 0:00:17]} 71. c4 {[%emt 0:00:54]} Rc1 {[%emt 0:00:38]} 72. Kd4 {[%emt 0:00:52]} Rd1+ {[%emt 0:00:36]} 73. Kc5 {[%emt 0:00:14]} Rc1 {[%emt 0:00:29]} 74. Kb5 {[%emt 0:01:23]} Rb1+ {[%emt 0:00:21]} 75. Kc6 {[%emt 0:00:07]} Rc1 {[%emt 0:00:12]} 76. c5 {[%emt 0:02:19]} Rc4 {[%emt 0:00:20]} 77. Rd8 {[%emt 0:00:29]} Ke5 {[%emt 0:00:53]} 78. Re8+ {[%emt 0:00:40]} Kd4 {[%emt 0:00:13]} 79. Rd8+ {[%emt 0:00:27]} Ke5 {[%emt 0:00:14]} 80. Kb5 {[%emt 0:01:41]} Rc1 {[%emt 0:01:10]} 81. c6 {[%emt 0:00:09]} Rb1+ {[%emt 0:00:32]} 82. Ka6 {[%emt 0:01:01]} Ra1+ {[%emt 0:00:33]} 83. Kb7 {[%emt 0:00:06]} Rb1+ {[%emt 0:00:19]} 84. Kc8 {[%emt 0:00:22]} Rc1 {[%emt 0:00:47]} 85. c7 {[%emt 0:00:09]} Ke6 {[%emt 0:00:22]} 86. e5 {[%emt 0:00:25]} Rb1 {[%emt 0:00:39]} 87. Rd2 {[%emt 0:02:44]} Ke7 {[%emt 0:00:19]} 88. e6 {[%emt 0:00:40]} Rb3 {[%emt 0:00:34]} 89. Ra2 {[%emt 0:00:33]} Rb1 {[%emt 0:00:29]} 90. Ra7 {[%emt 0:00:18]} Rb2 {[%emt 0:00:32]} 91. Rb7 {[%emt 0:00:09]} Rh2 {[%emt 0:00:32]} 92. Kb8 {[%emt 0:00:12]} Ra2 {[%emt 0:00:34]} 93. c8=Q+ {[%emt 0:00:20]} Kf6 {[%emt 0:00:21]} 94. Rf7+ {[%emt 0:00:26]} Ke5 {[%emt 0:00:24]} 95. Qc5+ {[%emt 0:00:26]} Kxe6 {[%emt 0:00:32]} 96. Re7+ {[%emt 0:00:19]} Kf6 {[%emt 0:00:17]} 97. Qe5+ {[%emt 0:00:07]} Kg6 {[%emt 0:00:11]} 98. Rg7+ {[%emt 0:00:05]} Kh6 {[%emt 0:00:07]} 99. Qg5# {[%emt 0:00:05]} 1-0

[Event "NED-ch U20 Girls 2018"]
[Site "Assen"]
[Date "2018.05.02"]
[Round "4"]
[White "Duson, Robin"]
[Black "Martinez, Anna"]
[Result "1/2-1/2"]
[ECO "B41"]
[WhiteElo "1920"]
[BlackElo "1795"]
[Annotator "NA RC"]
[PlyCount "88"]
[EventDate "2018.??.??"]
[EventType "swiss"]
[EventCountry "NED"]
[SourceTitle "playchess.com"]
[Source "ChessBase"]
[SourceQuality "1"]
[TimeControl "5400+30"]

1. e4 {[%emt 0:00:00]} c5 {[%emt 0:00:03]} 2. Nf3 {[%emt 0:00:00]} a6 {[%emt 0:00:04]} 3. c4 {[%emt 0:05:31]} Nc6 {[%emt 0:06:03]} 4. d4 {[%emt 0:02:23]} cxd4 {[%emt 0:00:29]} 5. Nxd4 {[%emt 0:00:59]} e6 {[%emt 0:01:09]} 6. Nc3 {[%emt 0:01:58]} Bb4 {[%emt 0:02:15]} 7. Nxc6 {[%emt 0:04:10]} bxc6 {[%emt 0:00:30] LiveBook: 8 Games B41: Sicilian: Kan Variation: 5 c4} 8. Qd4 {[%emt 0:02:44]} (8. Bd3 e5 9. O-O Ne7 10. Na4 d6 11. c5 d5 12. Qe2 dxe4 13. Bxe4 Be6 14. Rd1 Qb8 15. Rd6 {1-0 (32) Ramirez,A (2579)-Shulman,Y (2627) Wheeling 2011}) 8... Qf6 {[%emt 0:02:07]} 9. e5 {[%emt 0:04:17]} Qe7 {[%emt 0:01:46]} 10. Be3 $146 {[%emt 0:07:52]} ({Predecessor:} 10. Bd3 f6 11. Qg4 Qf7 12. f4 Nh6 13. Qh3 O-O {0-1 (34) Grabarczyk,B (2393)-Siebrecht,S (2479) Germany 2013}) 10... c5 {[%emt 0:01:58]} 11. Qd2 {[%emt 0:00:56]} f6 {[%emt 0:03:05]} 12. f4 {[%emt 0:06:09]} (12. a3 $16 Bxc3 13. Qxc3) 12... Bb7 {[%emt 0:03:51]} 13. a3 {[%emt 0:03:52]} Ba5 {[%emt 0:01:19]} 14. Qf2 {[%emt 0:06:46]} Rc8 {[%emt 0:02:13]} 15. Be2 {[%emt 0:01:56]} Nh6 {[%emt 0:01:14]} 16. O-O {[%emt 0:03:25]} O-O {[%emt 0:00:08]} 17. Na4 {[%emt 0:02:03]} fxe5 {[%emt 0:04:25]} 18. Nxc5 {[%emt 0:04:16] [#]} Ba8 $1 {[%emt 0:03:03]} 19. b4 {[%emt 0:05:27]} exf4 {[%emt 0:00:49]} 20. Bxf4 {[%emt 0:06:21]} (20. Bd4 $142 e5 21. Rae1) 20... Bb6 {[%emt 0:01:03]} 21. Rad1 {[%emt 0:08:59]} (21. Kh1 {might work better.} d6 22. Qe3 dxc5 23. Bg5) 21... e5 {[%emt 0:00:41]} 22. Qe3 {[%emt 0:01:28]} Rxc5 $2 {[%emt 0:02:38]} (22... Nf5 $19 23. Bg5 (23. Qxe5 $2 Qxe5 24. Bxe5 Rce8 $19) 23... Bxc5 24. bxc5 Nxe3 25. Bxe7 Rxf1+ 26. Rxf1 Nxf1 27. Kxf1 Rb8) 23. Bxh6 {[%emt 0:01:13]} Rxf1+ {[%emt 0:00:38]} 24. Kxf1 {[%emt 0:03:09]} Qf7+ {[%emt 0:07:41]} 25. Qf2 {[%emt 0:02:25]} Qxf2+ {[%emt 0:01:40]} 26. Kxf2 {[%emt 0:00:05]} Rxc4+ {[%emt 0:00:48]} 27. Be3 {[%emt 0:00:08]} Rf4+ {[%emt 0:00:41]} 28. Bf3 {[%emt 0:00:25]} e4 {[%emt 0:02:42]} 29. Bxb6 {[%emt 0:00:14]} exf3 {[%emt 0:00:08]} 30. g3 {[%emt 0:01:05]} Rf7 {[%emt 0:00:26]} 31. Rd6 {[%emt 0:02:15]} Bc6 {[%emt 0:00:43]} 32. Be3 {[%emt 0:01:11]} Rf5 {[%emt 0:03:11]} 33. h4 {[%emt 0:01:11]} a5 {[%emt 0:04:28]} 34. Bb6 {[%emt 0:01:47]} axb4 {[%emt 0:00:21]} 35. axb4 {[%emt 0:00:08]} Re5 {[%emt 0:00:58]} 36. Rd2 {[%emt 0:00:26]} Kf7 {[%emt 0:01:16]} 37. Bc5 {[%emt 0:01:49]} Ke6 {[%emt 0:05:34]} 38. Bd4 {[%emt 0:02:32]} Rd5 {[%emt 0:01:23]} 39. Ke3 $15 {[%emt 0:01:20]} g6 {[%emt 0:01:17]} 40. Bg7 {[%emt 0:00:54]} Rf5 {[%emt 0:00:48]} 41. Bh6 {[%emt 0:03:05]} Re5+ {[%emt 0:01:03]} 42. Kf2 {[%emt 0:00:35]} Re4 {[%emt 0:04:34]} 43. Bf8 {[%emt 0:00:32]} Rc4 {[%emt 0:00:57]} 44. Rb2 {[%emt 0:00:00]} d6 {[%emt 0:00:00]} 1/2-1/2

[Event "NED-ch U20 Girls 2018"]
[Site "Assen"]
[Date "2018.05.02"]
[Round "4"]
[White "Den Dunnen, Lola"]
[Black "Warnaar, Alisha"]
[Result "1-0"]
[ECO "E71"]
[WhiteElo "1912"]
[BlackElo "1647"]
[Annotator "NA RC"]
[PlyCount "87"]
[EventDate "2018.??.??"]
[EventType "swiss"]
[EventCountry "NED"]
[SourceTitle "playchess.com"]
[Source "ChessBase"]
[SourceQuality "1"]
[TimeControl "5400+30"]

1. d4 {[%emt 0:00:00]} Nf6 {[%emt 0:00:13]} 2. c4 {[%emt 0:00:00]} g6 {[%emt 0:00:05]} 3. Nc3 {[%emt 0:00:00]} Bg7 {[%emt 0:00:05]} 4. e4 {[%emt 0:00:00]} d6 {[%emt 0:00:06]} 5. h3 {[%emt 0:00:07]} O-O {[%emt 0:00:10]} 6. Be3 {[%emt 0:00:06]} c5 {[%emt 0:00:12]} 7. d5 {[%emt 0:00:05] E71: King's Indian: 4 e4 d6 5 h3} (7. Nf3 cxd4 8. Nxd4 b6 9. g3 Bb7 10. Bg2 Nbd7 11. O-O Rb8 12. Qc2 a6 13. Rad1 e6 14. Rfe1 Qe7 15. Qd2 Rfc8 16. b3 {½-½ (66) Bluebaum,M (2640)-Amin,B (2693) Wijk aan Zee 2018}) 7... e6 {[%emt 0:00:06]} 8. Nf3 {[%emt 0:02:24]} exd5 {[%emt 0:00:37]} 9. exd5 {[%emt 0:00:18] LiveBook: 18 Games} b5 {[%emt 0:00:24]} 10. Nxb5 $146 {[%emt 0:10:24]} ({Predecessor:} 10. cxb5 Nbd7 11. a4 Re8 12. Be2 Ne4 13. Nxe4 Rxe4 14. O-O Bxb2 {½-½ (37) Cuadrado Wentwort Hyde,G (2447)-Pugh,J (2473) ICCF email 2016}) 10... Ne4 {[%emt 0:00:23]} 11. Qc2 {[%emt 0:08:10]} (11. Bd3 $5 {[%cal Rd3e4]} a6 12. Nc7 (12. Bxe4 axb5 13. Bd3 bxc4 $15) 12... Qxc7 13. Bxe4 $11) 11... Re8 {[%emt 0:06:41]} 12. Rc1 {[%emt 0:22:24]} (12. Bd3 $11 {keeps the balance.}) 12... Qa5+ {[%emt 0:22:29]} 13. Nc3 {[%emt 0:04:32]} Bf5 {[%emt 0:15:05]} (13... Na6 $15 14. a3 Ng3 15. fxg3 Rxe3+ 16. Kf2 Bf5) 14. Bd3 {[%emt 0:04:57]} Ng3 {[%emt 0:03:55]} 15. Rg1 {[%emt 0:02:56]} (15. Bxf5 $11 {keeps the balance.} Nxh1 16. Bd3) 15... Bh6 $2 {[%emt 0:06:30]} (15... Na6 $17 16. Qd2 Bxd3 17. Qxd3 Nb4) 16. Kd2 {[%emt 0:00:57]} Bxd3 {[%emt 0:12:36]} 17. Kxd3 {[%emt 0:03:20]} Na6 {[%emt 0:04:49]} ({Black should play} 17... Bxe3 $11 18. fxe3 f5) 18. a3 {[%emt 0:04:44]} Bxe3 {[%emt 0:06:49]} 19. fxe3 {[%emt 0:00:10]} Re7 $2 {[%emt 0:06:28]} (19... f5 $16) 20. Qa4 {[%emt 0:04:47]} (20. Qf2 $18 {is the precise move to win.} Nf5 21. Ne4 (21. e4 Nd4 $16)) 20... Qb6 $16 {[%emt 0:01:02]} 21. Qb5 {[%emt 0:00:44]} Rae8 {[%emt 0:01:05]} 22. Rge1 {[%emt 0:02:28]} Nc7 {[%emt 0:01:37]} 23. Qxb6 {[%emt 0:01:19]} axb6 {[%emt 0:00:04]} 24. e4 {[%emt 0:05:45]} f6 {[%emt 0:00:24]} 25. h4 {[%emt 0:02:56]} h6 {[%emt 0:02:03]} 26. b4 {[%emt 0:03:01]} Ra8 {[%emt 0:03:18]} 27. Ra1 {[%emt 0:00:55]} Kf7 {[%emt 0:02:00]} 28. bxc5 {[%emt 0:02:26]} bxc5 {[%emt 0:00:07]} 29. Nb5 {[%emt 0:02:06]} Nxb5 {[%emt 0:00:49]} 30. cxb5 {[%emt 0:00:06]} Ra4 {[%emt 0:00:02]} 31. Nd2 {[%emt 0:01:24]} f5 {[%emt 0:01:56]} 32. exf5 {[%emt 0:03:30]} Nxf5 {[%emt 0:00:23]} 33. Rxe7+ {[%emt 0:00:54]} Kxe7 {[%emt 0:00:07]} 34. Nc4 {[%emt 0:00:38]} Kd8 {[%emt 0:01:03]} 35. b6 {[%emt 0:01:06]} Ne7 {[%emt 0:00:57]} 36. Rb1 {[%emt 0:02:12]} Ra8 {[%emt 0:00:36]} 37. b7 {[%emt 0:01:10]} Rb8 {[%emt 0:00:02]} 38. Nxd6 {[%emt 0:01:57]} Kc7 {[%emt 0:00:11]} 39. Nb5+ {[%emt 0:00:48]} Kxb7 {[%emt 0:00:28]} 40. Nd6+ {[%emt 0:00:37]} Kc7 {[%emt 0:00:05]} 41. Rxb8 {[%emt 0:00:06]} Kxb8 {[%emt 0:00:05]} 42. Kc4 {[%emt 0:00:18]} g5 {[%emt 0:02:32]} 43. hxg5 {[%emt 0:00:19]} hxg5 {[%emt 0:00:16]} 44. Kxc5 {[%emt 0:00:33]} 1-0

[Event "NED-ch U20 Girls 2018"]
[Site "Assen"]
[Date "2018.05.02"]
[Round "4"]
[White "Waardenburg, Feline"]
[Black "Waardenburg, Marlinde"]
[Result "1/2-1/2"]
[ECO "A05"]
[WhiteElo "1737"]
[BlackElo "1686"]
[Annotator "NA RC"]
[PlyCount "88"]
[EventDate "2018.??.??"]
[EventType "swiss"]
[EventCountry "NED"]
[SourceTitle "playchess.com"]
[Source "ChessBase"]
[SourceQuality "1"]
[TimeControl "5400+30"]

1. Nf3 {[%emt 0:00:00]} Nf6 {[%emt 0:00:06]} 2. g3 {[%emt 0:00:00]} g6 {[%emt 0:00:04]} 3. Bg2 {[%emt 0:00:00]} Bg7 {[%emt 0:00:04]} 4. O-O {[%emt 0:00:00]} d6 {[%emt 0:00:05]} 5. b3 {[%emt 0:00:00]} Nc6 {[%emt 0:00:06]} 6. Bb2 {[%emt 0:00:12]} h5 {[%emt 0:00:05]} 7. Nc3 {[%emt 0:00:08]} Ne5 {[%emt 0:00:06]} 8. Nxe5 {[%emt 0:00:07]} dxe5 {[%emt 0:00:02]} 9. d3 {[%emt 0:00:09]} h4 {[%emt 0:00:07]} 10. Qd2 {[%emt 0:00:03]} hxg3 {[%emt 0:00:16]} 11. hxg3 {[%emt 0:00:07]} Qd6 {[%emt 0:00:05]} 12. Rfe1 {[%emt 0:00:11]} a5 {[%emt 0:00:12]} 13. Rad1 {[%emt 0:00:09]} Qb4 {[%emt 0:00:19]} 14. Ne4 {[%emt 0:00:10]} Nxe4 {[%emt 0:00:08]} 15. dxe4 {[%emt 0:00:06]} Qxd2 {[%emt 0:00:14]} 16. Rxd2 {[%emt 0:00:12]} Bd7 {[%emt 0:00:06]} 17. Bc3 {[%emt 0:00:08]} a4 {[%emt 0:00:23]} 18. Red1 {[%emt 0:00:17]} O-O-O {[%emt 0:00:09]} 19. Bb4 {[%emt 0:00:04]} Rhe8 {[%emt 0:00:11]} 20. Kh2 {[%emt 0:00:11]} axb3 {[%emt 0:00:08]} 21. axb3 {[%emt 0:00:06]} Be6 {[%emt 0:00:07]} 22. Bh3 {[%emt 0:00:10]} Rd4 {[%emt 0:00:06]} 23. Bxe6+ {[%emt 0:00:06]} fxe6 {[%emt 0:00:15]} 24. Ba3 {[%emt 0:00:07]} Rxe4 {[%emt 0:00:12]} 25. f3 {[%emt 0:00:09]} Re3 {[%emt 0:00:04]} 26. Kg2 {[%emt 0:00:05]} Rc3 {[%emt 0:00:06]} 27. Rh1 {[%emt 0:00:26]} Rc6 {[%emt 0:00:09]} 28. Kf1 {[%emt 0:00:19]} Ra6 {[%emt 0:00:12]} 29. Bc5 {[%emt 0:00:08]} Ra5 {[%emt 0:00:07]} 30. Bb4 {[%emt 0:00:07]} Ra6 {[%emt 0:00:06]} 31. Rd1 {[%emt 0:00:12]} Kb8 {[%emt 0:00:04]} 32. g4 {[%emt 0:00:04]} Bf6 {[%emt 0:00:06]} 33. g5 {[%emt 0:00:07]} Bxg5 {[%emt 0:00:06]} 34. Bc5 {[%emt 0:00:23]} b6 {[%emt 0:00:05]} 35. Rg1 {[%emt 0:00:10]} bxc5 {[%emt 0:00:05]} 36. Rxg5 {[%emt 0:00:06]} Rd6 {[%emt 0:00:18]} 37. Ke1 {[%emt 0:00:05]} Kc8 {[%emt 0:00:09]} 38. Rxg6 {[%emt 0:00:06]} Rxd1+ {[%emt 0:00:08]} 39. Kxd1 {[%emt 0:00:09]} Kd7 {[%emt 0:00:03]} 40. Rg1 {[%emt 0:00:12]} Kc6 {[%emt 0:00:15]} 41. Kd2 {[%emt 0:00:05]} Rd8+ {[%emt 0:00:07]} 42. Kc1 {[%emt 0:00:05]} Kb6 {[%emt 0:00:06]} 43. Rd1 {[%emt 0:00:08]} Rxd1+ {[%emt 0:00:34]} 44. Kxd1 {[%emt 0:00:04]} Kc6 {[%emt 0:00:08]} 1/2-1/2

[Event "NED-ch U20 Girls 2018"]
[Site "Assen"]
[Date "2018.05.02"]
[Round "4"]
[White "Tiggelman, Laura"]
[Black "Woest, Imre"]
[Result "0-1"]
[ECO "B50"]
[WhiteElo "1536"]
[BlackElo "1418"]
[Annotator "NA RC"]
[PlyCount "92"]
[EventDate "2018.??.??"]
[EventType "swiss"]
[EventCountry "NED"]
[SourceTitle "playchess.com"]
[Source "ChessBase"]
[SourceQuality "1"]
[TimeControl "5400+30"]

1. e4 {[%emt 0:00:00]} c5 {[%emt 0:00:04]} 2. Nf3 {[%emt 0:00:00]} d6 {[%emt 0:00:05]} 3. c3 {[%emt 0:00:00]} Nf6 {[%emt 0:01:21]} 4. Bd3 {[%emt 0:00:00]} Nc6 {[%emt 0:00:44]} 5. Bc2 {[%emt 0:00:04]} Bg4 {[%emt 0:00:11]} 6. d3 {[%emt 0:00:25]} e6 {[%emt 0:04:22]} 7. Nbd2 {[%emt 0:12:17]} Be7 {[%emt 0:02:55]} 8. h3 {[%emt 0:02:30]} Bh5 {[%emt 0:01:05]} 9. O-O {[%emt 0:02:18]} O-O {[%emt 0:01:50]} 10. Re1 {[%emt 0:07:45]} b5 {[%emt 0:09:58]} 11. Nf1 {[%emt 0:03:19]} Ne5 {[%emt 0:07:34]} 12. g4 {[%emt 0:03:29]} Nexg4 {[%emt 0:06:56]} 13. hxg4 {[%emt 0:00:19]} Bxg4 {[%emt 0:00:25]} 14. N1h2 {[%emt 0:05:08]} Bh5 {[%emt 0:00:13]} 15. Kg2 {[%emt 0:08:33]} Ng4 {[%emt 0:05:24]} 16. Rh1 {[%emt 0:14:00]} d5 {[%emt 0:06:10]} 17. d4 {[%emt 0:02:15]} Rc8 {[%emt 0:13:12]} 18. exd5 {[%emt 0:02:33]} Nxh2 {[%emt 0:01:11]} 19. Rxh2 {[%emt 0:00:19]} Qxd5 {[%emt 0:00:32]} 20. Qd3 {[%emt 0:03:15]} Bg6 {[%emt 0:00:50]} 21. Qe2 {[%emt 0:01:51]} cxd4 {[%emt 0:08:14]} 22. Bxg6 {[%emt 0:01:00]} fxg6 {[%emt 0:00:05]} 23. cxd4 {[%emt 0:01:39]} Rc4 {[%emt 0:05:50]} 24. Be3 {[%emt 0:00:50]} g5 {[%emt 0:03:48]} 25. Rh5 {[%emt 0:15:27]} g4 {[%emt 0:04:59]} 26. Rxd5 {[%emt 0:00:52]} gxf3+ {[%emt 0:00:19]} 27. Qxf3 {[%emt 0:00:06]} Rxf3 {[%emt 0:00:21]} 28. Kxf3 {[%emt 0:00:04]} exd5 {[%emt 0:00:09]} 29. b3 {[%emt 0:00:24]} Rc2 {[%emt 0:00:43]} 30. a4 {[%emt 0:02:28]} b4 {[%emt 0:01:01]} 31. Rd1 {[%emt 0:01:43]} Rc3 {[%emt 0:02:45]} 32. Rb1 {[%emt 0:00:42]} Kf7 {[%emt 0:00:49]} 33. Kg4 {[%emt 0:02:16]} Kg6 {[%emt 0:01:09]} 34. a5 {[%emt 0:07:20]} h5+ {[%emt 0:00:24]} 35. Kh3 {[%emt 0:00:15]} Kf5 {[%emt 0:00:26]} 36. a6 {[%emt 0:01:21]} g5 {[%emt 0:04:52]} 37. Kg2 {[%emt 0:00:40]} g4 {[%emt 0:00:26]} 38. Rh1 {[%emt 0:00:33]} h4 {[%emt 0:00:09]} 39. Rb1 {[%emt 0:00:29]} h3+ {[%emt 0:01:00]} 40. Kg1 {[%emt 0:00:41]} Bg5 {[%emt 0:03:54]} 41. Rf1 {[%emt 0:00:39]} Rxb3 {[%emt 0:01:18]} 42. Bxg5 {[%emt 0:00:00]} Kxg5 {[%emt 0:00:00]} 43. Re1 {[%emt 0:00:00]} Ra3 {[%emt 0:00:00]} 44. Re5+ {[%emt 0:00:00]} Kf4 {[%emt 0:00:00]} 45. Rxd5 {[%emt 0:00:00]} Rxa6 {[%emt 0:00:00]} 46. Rb5 {[%emt 0:00:00]} Rb6 {[%emt 0:00:00]} 0-1

[Event "NED-ch U20 Girls 2018"]
[Site "Assen"]
[Date "2018.05.02"]
[Round "4"]
[White "Adema, Marrit"]
[Black "Naber, Quirine"]
[Result "1-0"]
[ECO "E98"]
[WhiteElo "1497"]
[BlackElo "1775"]
[Annotator "NA RC"]
[PlyCount "97"]
[EventDate "2018.??.??"]
[EventType "swiss"]
[EventCountry "NED"]
[SourceTitle "playchess.com"]
[Source "ChessBase"]
[SourceQuality "1"]
[TimeControl "5400+30"]

1. d4 {[%emt 0:00:00]} Nf6 {[%emt 0:00:04]} 2. c4 {[%emt 0:00:00]} g6 {[%emt 0:00:03]} 3. Nc3 {[%emt 0:00:27]} Bg7 {[%emt 0:00:04]} 4. e4 {[%emt 0:00:05]} d6 {[%emt 0:00:03]} 5. Be2 {[%emt 0:00:04]} O-O {[%emt 0:00:10]} 6. Nf3 {[%emt 0:00:05]} e5 {[%emt 0:00:15]} 7. O-O {[%emt 0:00:07]} Nc6 {[%emt 0:00:02]} 8. d5 {[%emt 0:00:05]} Ne7 {[%emt 0:00:08]} 9. Ne1 {[%emt 0:00:06]} Ne8 {[%emt 0:00:09]} 10. Be3 {[%emt 0:00:08]} f5 {[%emt 0:00:07]} 11. f3 {[%emt 0:00:04]} f4 {[%emt 0:00:05]} 12. Bf2 {[%emt 0:00:03]} g5 {[%emt 0:00:18]} 13. a4 {[%emt 0:00:41]} h5 {[%emt 0:05:24]} 14. a5 {[%emt 0:04:40]} Ng6 {[%emt 0:01:45]} 15. b4 {[%emt 0:01:22]} Rf7 {[%emt 0:05:01]} 16. c5 {[%emt 0:02:36]} Bf8 {[%emt 0:13:18]} 17. c6 {[%emt 0:02:21]} Rh7 {[%emt 0:11:45]} 18. Nb5 {[%emt 0:05:42]} a6 {[%emt 0:06:29]} 19. Na7 {[%emt 0:02:23]} Nf6 {[%emt 0:02:36]} 20. Nxc8 {[%emt 0:02:03]} Qxc8 {[%emt 0:00:03]} 21. b5 {[%emt 0:03:26]} bxc6 {[%emt 0:03:28]} 22. dxc6 {[%emt 0:01:33]} axb5 {[%emt 0:00:21]} 23. Bxb5 {[%emt 0:01:06]} g4 {[%emt 0:06:42]} 24. a6 {[%emt 0:04:17]} h4 {[%emt 0:02:08]} 25. Kh1 {[%emt 0:01:58]} g3 {[%emt 0:01:48]} 26. Bg1 {[%emt 0:00:50]} h3 {[%emt 0:00:47]} 27. Ra2 {[%emt 0:05:26]} Nh4 {[%emt 0:16:07]} 28. Bc4+ {[%emt 0:09:18]} Kh8 {[%emt 0:01:30]} 29. Qb3 {[%emt 0:02:14]} Qe8 {[%emt 0:07:41]} 30. Qb7 {[%emt 0:08:42]} Rb8 {[%emt 0:02:15]} 31. a7 {[%emt 0:00:28]} Ra8 {[%emt 0:01:56]} 32. Rb2 {[%emt 0:08:58]} gxh2 {[%emt 0:06:10]} 33. Bxh2 {[%emt 0:01:53]} hxg2+ {[%emt 0:05:29]} 34. Nxg2 {[%emt 0:01:00]} d5 {[%emt 0:01:19]} 35. Qb8 {[%emt 0:06:12]} Bc5 {[%emt 0:00:35]} 36. Qxa8 {[%emt 0:00:54]} Qxa8 {[%emt 0:00:02]} 37. Rb8+ {[%emt 0:00:32]} Kg7 {[%emt 0:00:02]} 38. Rxa8 {[%emt 0:00:29]} Nxf3 {[%emt 0:00:35]} 39. Rxf3 {[%emt 0:01:19]} Ng4 {[%emt 0:00:03]} 40. Rg8+ {[%emt 0:01:41]} Kxg8 {[%emt 0:00:04]} 41. a8=Q+ {[%emt 0:00:15]} Kg7 {[%emt 0:00:04]} 42. Ne3 {[%emt 0:04:25]} fxe3 {[%emt 0:00:19]} 43. Kg2 {[%emt 0:03:33]} Rxh2+ {[%emt 0:00:00]} 44. Kg3 {[%emt 0:00:00]} dxc4 {[%emt 0:00:00]} 45. Qd8 {[%emt 0:00:00]} e2 {[%emt 0:00:00]} 46. Qd7+ {[%emt 0:00:00]} Kh8 {[%emt 0:00:00]} 47. Qe8+ {[%emt 0:00:00]} Kh7 {[%emt 0:00:00]} 48. Rf7+ {[%emt 0:00:00]} Kh6 {[%emt 0:00:00]} 49. Qe6+ {[%emt 0:00:00]} 1-0